Workbook

Sheet Factory Input Fields
B1: Labour Minute and Product Costing Calculator - Bangladesh
B2: Instructions and input fields, calculation and comparison of labour minute values
B3: https://api.fairwear.org/wp-content/uploads/2020/06/Guidance-for-Use-of-the-Fair-Wear-Labour-and-Minute-and-Product-Costing-Calculator-Final.pdf
B5: The file is filled with the mandatory wage data per grade and includes all necessary calculation formulas
B6: The yellow fields in the file are your input fields, where you should insert the actual information based on your factory
G9: Factory Name (optional)
B10: Step | C10: Value | G10: Responsible staff (optional)
B11: 1) | C11: 83 | D11: Insert actual BDT-US$ foreign exchange rate or foreign exchange rate you are using for your calculations.
B12: workforce
B13: 2) | D13: Insert total number of workers in the factory.
B14: 3) | D14: Insert total number of sewing operators working actively in the prod. lines (i.e. # machines in the lines determine capacity minutes), which means: | H14: =IFERROR(C14/C13,0) -> 0 | I14: of the workforce.
B15: 4) | D15: Distribution of workers per Pay Grade in % Please adjust the percentages to reflect the real situation regarding the distribuion of the workforce by grade level in your factory.
B16: Must add up to 100% | D16: Grade 1 | E16: Grade 2 | F16: Grade 3 | G16: Grade 4 | H16: Grade 5 | I16: Grade 6 | J16: Grade 7
C17: =SUM(D17:J17) -> 1 | D17: 0.01 | E17: 0.03 | F17: 0.25 | G17: 0.19 | H17: 0.21 | I17: 0.12 | J17: 0.19
B18: 5) | D18: Distribution of workers according to years of service (per Pay Grade) in % After one year of service workers are entitled to a 5% wage increment, which would thus impact on the total labour cost. If this is the case for your factory, please adapt the above according to the years of service of your workforce per wage grade.
D19: Grade 1 | E19: Grade 2 | F19: Grade 3 | G19: Grade 4 | H19: Grade 5 | I19: Grade 6 | J19: Grade 7
B20: Less than 1 Year | D20: 1 | E20: 1 | F20: 1 | G20: 1 | H20: 1 | I20: 1 | J20: 1
B21: Between 1 and 2 Year | D21: 0 | E21: 0 | F21: 0 | G21: 0 | H21: 0 | I21: 0 | J21: 0
B22: Between 2 and 3 Year | D22: 0 | E22: 0 | F22: 0 | G22: 0 | H22: 0 | I22: 0 | J22: 0
B23: Between 3 and 4 Year | D23: 0 | E23: 0 | F23: 0 | G23: 0 | H23: 0 | I23: 0 | J23: 0
B24: More than 4 Year | D24: 0 | E24: 0 | F24: 0 | G24: 0 | H24: 0 | I24: 0 | J24: 0
B25: Must add up to 100% | D25: =SUM(D20:D24) -> 1 | E25: 1 | F25: 1 | G25: 1 | H25: 1 | I25: 1 | J25: 1
B26: paid leave
B27: 6) | C27: 11 | D27: Total number of paid public holiday (i.e. festival leave) days per year when the factory is closed and workers are paid. As per law, workers are entitled to a minimum of 11 days.
C28: 18 | D28: Total number of earned leave days. As per law, workers are entitled to 18 days of paid earned leave.
C29: 14 | D29: Total number of paid medical leave. As per law, workers are entitled to a maximum of 14 days of paid medical leave.
C30: 10 | D30: Total number of paid casual leave. As per law, workers are entitled to a maximum of 10 days of paid casual leave.
C31: =SUM(C27:C30) -> 53 | D31: Total average number of paid leave days taken annually per worker.
B32: overtime
B33: 7) | D33: Insert the average weekly Overtime Hours of your factory.
B34: capacity minutes
C35: =48*4.33*60+C33*4.33*60-((C31/12*8*60))-((C31/12*C33/6)*60) -> 10350.4 | D35: Total capacity minutes per worker/month, based on regular (48 h/w) and overtime hours (C33) and adjusted for the total average number of paid leave taken annually per worker (C31).
C36: =C14*C35 -> 0 | D36: Total monthly sewing minutes capacity. Capacity minutes per worker/month (C35) multiplied by the number of sewing operators (C14).
B37: paid benefits
B38: 8) | D38: Insert total number of months paid per worker per YEAR as festival bonus, e.g. 1 or 2 (months).
B39: 9) | D39: Insert the total amount of attendance bonuses paid per MONTH in BDT. If this value is very volatile, calculate the average figure of the last 6 - 12 month based on the data available.
B40: 10) | D40: Insert the total amount in productivity bonuses you pay per MONTH in BDT. If this value is very volatile, calculate the average figure of the last 6 - 12 month based on the data available.
B41: 11) | D41: Insert all other bonuses you are providing to your workforce which are not mentioned in the file. This can also be the cost for in kind benefits. Add all bonuses together and insert the total amount per MONTH in BDT.
B42: employer on-costs
B43: 12) | D43: Insert the total amount you pay for group insurance according to your company policy per YEAR in BDT.
B44: 13) | D44: If you pay into a Provident Fund, please indicate the total amount you pay for your workers per YEAR in BDT.
B45: 15) | D45: Insert the total amount of maternity benefits you paid per YEAR in BDT (e.g. based on previous year).
B46: 14) | D46: Insert total amount paid in severence payments for the entire factory per YEAR in BDT. This could be affected due to Covid-19.
B47: 16) | D47: Any additional employer labour-related on-costs (e.g. service benefits, etc.) paid per YEAR in BDT.
B49: 17) | C49: 16000 | D49: If applicable, insert the Target Wage selected for grade 7, in order to compare the labour minute value based on 2013/2018 minimum wage and the applied target wage. Grades 1-6 are increased with the same nominal increase as for grade 7. However, different models are possible, which need to be discussed with management and worker representatives. This could then be adjusted in the coloured cells in the Worksheet 'Target Wage'. Please note that this would remove the formula.
B51: Once you have inserted all above you should get following information:
B53: Wage grade 7 | C53: Description | E53: Labour Cost avg. worker | F53: Capacity Minutes | G53: BDT Labour Minute Value | H53: US$ Labour Minute Value | I53: Difference (absolute) | J53: Increment (in%)
B54: 8000 | C54: Labour Minute Value (based on 2018 Legal Minimum Wage) | E54: ='2018 LMW'!D42 -> 9276.275 | F54: =C35 -> 10350.4 | G54: =E54/F54 -> 0.8962238174 | H54: ='2018 LMW'!D45 -> 0.01079787732
B55: =C49 -> 16000 | C55: Labour Minute Value (based on Target Wage) | E55: ='Target Wage'!D42 -> 17276.275 | F55: =C35 -> 10350.4 | G55: 1.669140806 | H55: ='Target Wage'!D45 -> 0.02011013019 | I55: =H55-H54 -> 0.009312252876 | J55: =IFERROR((H55-H54)/H54,0) -> 0.8624151397
B57: Monthly Operational Expenses in the Factory
C58: in BDT | D58: in USD | E58: per minute | F58: (operational expenses divided by the total monthly sewing minutes (C36)
B59: 20) | D59: =C59/C11 -> 0 | E59: =IFERROR((C59/$C$36)/$C$11,0) -> 0 | F59: Insert the total amount paid for Direct Labour (i.e. sewing operators) per month in BDT.
B60: 21) | D60: =C60/C11 -> 0 | E60: =IFERROR((C60/$C$36)/$C$11,0) -> 0 | F60: Insert the total amount paid for Indirect Labour (all other labour costs besides sewing, e.g. cutting, QC, maintainance, security, cleaning, office staff etc.) per month in BDT.
C61: =SUM(C59:C60) -> 0 | D61: =D60+D59 -> 0 | E61: =IFERROR((C61/$C$36)/$C$11,0) -> 0 | F61: Total labour costs per month in BDT / Labour Minute Costs (calculated by dividing with sewing capacity minutes: C36)
B62: 22) | D62: =C62/C11 -> 0 | E62: =IFERROR((C62/$C$36)/$C$11,0) -> 0 | F62: Insert the average overhead costs in the factory: rent, fuel, electricity, training, interest payments, depreciation on building, safety measures, etc. per month in BDT.
B63: 23) | D63: =C63/C11 -> 0 | E63: =IFERROR((C63/$C$36)/$C$11,0) -> 0 | F63: If applicable, Insert the total additional costs per month for Covid-19 measures (e.g. face masks, desinfectants, temperature scanning, etc). One could us the Covid worksheet to calculate this.
C64: =SUM(C61:C63) -> 0 | D64: =SUM(D61:D63) -> 0 | E64: =SUM(E61:E63) -> 0 | F64: Total factory expenses per month in BDT / working minute costs (which can be compared with the working minute costs based on prevailing (2018) min. wage (Cell I-75) as a plausibility check).
C66: =IFERROR(C59/C61,0) -> 0 | D66: Total percentage paid for Direct Labour, i.e. sewing (based on step 20 above).
C67: =IFERROR(C60/C61,0) -> 0 | D67: Total percentage paid for Indirect Labour, i.e. all other labour costs besides sewing, e.g. cutting, QC, maintainance, security, cleaning, office staff etc (based on step 21 above).
B69: Once you have inserted all above you should get following information:
B71: Wage grade 7 | C71: Description | E71: Direct Labour (A) | F71: Indirect Labour (B) | G71: Factory Labour Minute Value (C) | H71: Overhead (D) | I71: Total Working Minute Cost (C+D) | J71: Increment (in%)
E72: =C66 -> 0 | F72: =C67 -> 0 | G72: A+B
B73: 8000 | C73: Factory Labour/Working Minute Value (based on 2018 Legal Minimum Wage) | E73: =H54 -> 0.01079787732 | F73: =IFERROR(G73*C67,0) -> 0 | G73: =IFERROR(E73/C66,0) -> 0 | H73: =E62+E63 -> 0 | I73: =SUM(G73:H73) -> 0
B74: =C49 -> 16000 | C74: Factory Labour/Working Minute Value (based on Target Wage) | E74: =H55 -> 0.02011013019 | F74: =IFERROR(G74*C67,0) -> 0 | G74: =IFERROR(E74/C66,0) -> 0 | H74: =E62+E63 -> 0 | I74: 0 | J74: =IFERROR((I74-I73)/I73,0) -> 0

Sheet Product Style Costing
B1: Product Style Costing Calculator - Bangladesh
B2: Instructions and input fields, calculation and comparison of labour minute values
B3: https://api.fairwear.org/wp-content/uploads/2020/06/Guidance-for-Use-of-the-Fair-Wear-Labour-and-Minute-and-Product-Costing-Calculator-Final.pdf
B5: The file is filled with the mandatory wage data per grade and includes all necessary calculation formulas
B6: The yellow fields in the file are your input fields, where you should insert the actual information based on your factory
G9: Brand Name
G10: Responsible staff (optional)
B12: From the Worksheet "Factory Input Fields' you should get following information:
B14: Wage grade 7 | C14: Description | E14: Direct Labour (A) | F14: Indirect Labour (B) | G14: Factory Labour Minute Value (C) | H14: Overhead (D) | I14: Total Working Minute Cost (C+D) | J14: Increment (in%)
E15: ='Factory Input Fields'!E72 -> 0 | F15: ='Factory Input Fields'!F72 -> 0 | G15: A+B
B16: 8000 | C16: Factory Labour/Working Minute Value (based on 2018 Legal Minimum Wage) | E16: ='Factory Input Fields'!E73 -> 0.01079787732 | F16: ='Factory Input Fields'!F73 -> 0 | G16: ='Factory Input Fields'!G73 -> 0 | H16: ='Factory Input Fields'!H73 -> 0 | I16: =SUM(G16:H16) -> 0
B17: ='Factory Input Fields'!B74 -> 16000 | C17: Factory Labour/Working Minute Value (based on Target Wage) | E17: ='Factory Input Fields'!E74 -> 0.02011013019 | F17: ='Factory Input Fields'!F74 -> 0 | G17: ='Factory Input Fields'!G74 -> 0 | H17: ='Factory Input Fields'!H74 -> 0 | I17: 0 | J17: =IFERROR((I17-I16)/I16,0) -> 0
B19: Calculating the cost for a product style
C21: Items provided by the factory | E21: Details / Calculations | G21: Notes
B22: 1) | C22: Style Name | G22: Style name or number of the Product
B23: 2) | C23: Standard Allowed Minutes | G23: Standard Allowed Minutes (sewing) of the style you want to calculate per piece.
B24: 3) | C24: Efficiency Percentage | G24: Depending on your cost calculation the factory or line efficiency value. Note: One could adjust this % to calculate the impact of Covid-19 on labour (and product) costs due to possible efficiency loss.
C25: Actual number of sewing minutes for style | E25: =IFERROR(E23/E24,0) -> 0 | G25: Note: if you don't know the SAM and efficiency percentage, simply indicate the actual labour minutes under 2, and 100% efficiency under 3.
B26: 4) | C26: Fabric | G26: Fabric costs per piece (incl. wastage %) in USD
B27: 5) | C27: Accessories | G27: Costs for accessories (buttons, zippers, etc) per piece in USD
B28: 6) | C28: Polybag, packaging, labelling | G28: Total amount per piece for polybag, packaging, hangtag
C29: Total Material Costs | E29: =SUM(E26:G28) -> 0
B30: Total CM Costs | C30: Labour Cost | E30: at 2018 LMW | F30: at Target Wage | G30: Factory labour minute value x SAM / efficiency %
C31: Direct | D31: ='Factory Input Fields'!$E$72 -> 0 | E31: =E25*'Factory Input Fields'!$E$73 -> 0 | F31: =E25*'Factory Input Fields'!$E$74 -> 0
C32: Indirect | D32: ='Factory Input Fields'!$F$72 -> 0 | E32: =E25*'Factory Input Fields'!$F$73 -> 0 | F32: =E25*'Factory Input Fields'!$F$74 -> 0
C33: Total labour cost | E33: =SUM(E31:E32) -> 0 | F33: =SUM(F31:F32) -> 0
C34: Overhead Cost (elecricity, fuel ..) | E34: ='Factory Input Fields'!$H$73*E25 -> 0 | G34: Overhead cost per minute (H16) x minutes spent on style (step 2-3).
B35: 7) | C35: Outsourced processes | G35: If applicable, amount for outsourced processes (e.g. embroidery, washing, printing) per piece in USD
B36: 8) | C36: Logistic costs (inbound-outbound) | G36: Freight cost to bring material to factory and finished goods to buyer (depending on INCOTERMS agreed) per piece in USD
B37: 9) | C37: Import tax and duties | G37: Cost for import tax and duties calculated per piece in USD
C38: Total | E38: =E29+E33+E35+E36+E34+E37 -> 0 | F38: =E29+F33+E35+E36+E34+E37 -> 0
B39: 10) | C39: Profit Margin | E39: =D39*E$38 -> 0 | F39: =D39*F$38 -> 0 | G39: Insert your profit margin.
B40: 11) | C40: Buying House Commission | E40: =D40*E$38 -> 0 | F40: =D40*F$38 -> 0 | G40: If applicable, insert the buying houses commission %
C41: FOB PRICE | E41: =SUM(E38:E40) -> 0 | F41: =SUM(F38:F40) -> 0
C42: % increase | E42: =IFERROR((E41-#REF!)/#REF!,0) -> 0 | F42: =IFERROR((F41-#REF!)/#REF!,0) -> 0
B44: 12) | D44: CHECK: insert the FOB price you receive from the buyer (in USD). | I44: Date:
B45: 13) | D45: Insert the order size (# pieces) | E45: =C45*E41 -> 0 | F45: =C45*F41 -> 0 | G45: Order Value

Sheet COVID
B1: Impact of COVID-19 on Product Style Costing
B3: https://api.fairwear.org/wp-content/uploads/2020/06/Guidance-for-Use-of-the-Fair-Wear-Labour-and-Minute-and-Product-Costing-Calculator-Final.pdf
B5: The yellow fields in the file are your input fields, where you should insert the actual information based on your factory
B7: Additional expenditures because of Covid-19 | F7: Required amount (BDT) | G7: # Months for depreciation | H7: Amount per month (BDT) | I7: Amount per month (USD)
C9: Monthly Variable costs
C10: Facemasks / gloves, etc | I10: =H10/'Factory Input Fields'!C11 -> 0
C11: Desinfectants / soap / dispensers, etc. | I11: =H11/'Factory Input Fields'!C11 -> 0
C12: Other: | I12: =H12/'Factory Input Fields'!C11 -> 0
C13: Investments needed
C14: Infrared Thermometers | H14: =IFERROR(F14/G14,0) -> 0 | I14: =H14/'Factory Input Fields'!$C$11 -> 0
C15: Plastic/Plexiglass dividers | H15: =IFERROR(F15/G15,0) -> 0 | I15: =H15/'Factory Input Fields'!$C$11 -> 0
C16: Ventilators | H16: =IFERROR(F16/G16,0) -> 0 | I16: =H16/'Factory Input Fields'!$C$11 -> 0
C17: Refitting the building for social distancing | H17: =IFERROR(F17/G17,0) -> 0 | I17: =H17/'Factory Input Fields'!$C$11 -> 0
C18: Other: | H18: =IFERROR(F18/G18,0) -> 0 | I18: =H18/'Factory Input Fields'!$C$11 -> 0
C19: Total | H19: =SUM(H10:H18) -> 0 | I19: =SUM(I10:I18) -> 0
B20: Note: one can insert the monthly expenses for Covid-19 safety measures in Step 22 on the 'Input Fields' worksheet.
B22: Items that are affected because of Covid | E22: Pre-Covid | F22: Covid | G22: Additional per YEAR | H22: Additional per month in BDT | I22: Additional per month in USD | J22: Increase in minute value
B24: 13) | C24: Insert total amount paid in Severence Payments Pre-Covid for the entire factory in BDT PER YEAR. | F24: ='Factory Input Fields'!C46 -> 0 | G24: =F24-E24 -> 0 | H24: =G24/12 -> 0 | I24: =H24/'Factory Input Fields'!C11 -> 0 | J24: =IFERROR(I24/'Factory Input Fields'!C36,0) -> 0
B25: 21) | C25: If applicable, Insert the total additional costs per month for Covid-19 measures (e.g. face masks, desinfectants, temperature scanning, etc). | H25: =H19 -> 0 | I25: =H25/'Factory Input Fields'!C11 -> 0 | J25: =IFERROR(I25/'Factory Input Fields'!C36,0) -> 0
B27: Description | E27: Direct Labour (A) | F27: Indirect Labour (B) | G27: Factory Labour Minute Value (C) | H27: Overhead (D) | I27: Increase in Total Working Minute Cost | J27: Increment (in%)
E28: ='Factory Input Fields'!C66 -> 0 | F28: ='Factory Input Fields'!C67 -> 0 | G28: A+B | I28: (C+D)
B29: Additional costs per minute | E29: =J24 -> 0 | F29: =G29*F28 -> 0 | G29: =IFERROR(E29/E28,0) -> 0 | H29: =J25 -> 0 | I29: =SUM(G29:H29) -> 0
B31: Calculating the Impact of Covid-19 on the cost for a product style
C33: Items provided by the factory | E33: Pre-Covid | F33: Covid | G33: Notes
B34: 22) | C34: Style Name / Number | E34: =_xlfn.SINGLE('Factory Input Fields'!#REF!) ->  | G34: Style name or number of the Product
B35: 23) | C35: Standard Allowed Minutes | E35: ='Factory Input Fields'!#REF! ->  | G35: Standard Allowed (sewing) Minutes of the style you want to calculate per piece.
B36: 24) | C36: Efficiency Percentage | F36: ='Factory Input Fields'!#REF! ->  | G36: One could calculate the impact of Covid-19 by inserting the efficiency percentage pre-Covid. This would clarify the loss in efficiency and hence the additional number of minutes required to make the product.
C37: Actual number of sewing minutes for style | E37: =IFERROR(E35/E36,0) -> 0 | F37: =IFERROR(E35/F36,0) -> 0 | G37: Note: if you don't know the SAM and efficiency percentage, simply indicate the actual labour minutes under 23, and 100% efficiency under 24.
B38: 25) | C38: Fabric | E38: =_xlfn.SINGLE('Factory Input Fields'!#REF!) ->  | G38: Fabric costs per piece (incl. wastage %) in USD
B39: 26) | C39: Accessories | E39: =_xlfn.SINGLE('Factory Input Fields'!#REF!) ->  | G39: Costs for accessories (buttons, zippers, etc) per piece in USD
B40: 27) | C40: Polybag, packaging, labelling | E40: =_xlfn.SINGLE('Factory Input Fields'!#REF!) ->  | G40: Total amount per piece for polybag, packaging, hangtag
C41: Total Material Costs | E41: =SUM(E38:F40) -> 
B42: Total CM Costs | C42: Labour Cost | E42: at 2020 LMW Pre Covid | F42: at 2020 LMW Covid | G42: Factory labour minute value x SAM / efficiency % Labour costs could increase due to Covid-19 because the factory labour minute value has increased (i.e. because if increased severence pay), and because the number of minutes required to make the product increased (due to a drop in efficiency.
C43: Direct | D43: =E28 -> 0 | E43: =('Factory Input Fields'!E73-COVID!E29)*COVID!E37 -> 0 | F43: =F37*'Factory Input Fields'!E73 -> 0
C44: Indirect | D44: =F28 -> 0 | E44: =('Factory Input Fields'!F73-COVID!F29)*COVID!E37 -> 0 | F44: =F37*'Factory Input Fields'!F73 -> 0
C45: Total labour cost | E45: =SUM(E43:E44) -> 0 | F45: =SUM(F43:F44) -> 0
C46: Overhead Cost (electricity, fuel ..) | E46: =E37*'Factory Input Fields'!E62 -> 0 | F46: =F37*('Factory Input Fields'!E62+'Factory Input Fields'!E63) -> 0 | G46: Monthly overhead costs (step 20-21) divided by monthly sewing minutes -C18) x minutes spent on style (Cell- E65). Overhead could increase because of Covid-19.
B47: 28) | C47: Outsourced processes | E47: =_xlfn.SINGLE('Factory Input Fields'!#REF!) ->  | G47: If applicable, amount paid per piece for outsourced processes (e.g. embroidery, washing, printing) in USD
B48: 29) | C48: Logistic costs (inbound-outbound) | E48: =_xlfn.SINGLE('Factory Input Fields'!#REF!) ->  | G48: Cost for logistics (inbound and out-bound) calculated per piece in USD
B49: 30) | C49: Import tax and duties | E49: =_xlfn.SINGLE('Factory Input Fields'!#REF!) ->  | G49: Cost for import tax and duties calculated per piece in USD
C50: Total Garment Manufacturing Cost | E50: =E49+E48+E47+E46+E45+E41 ->  | F50: =E49+E48+E47+F46+F45+E41 ->  | G50: =F50-E50 ->  | H50: Difference because of Covid
B51: 31) | C51: Mark-up % | D51: ='Factory Input Fields'!#REF! ->  | E51: =D51*E50 ->  | F51: =D51*F50 ->  | G51: Insert your mark-up %
B52: 32) | C52: Buying House Commission | D52: ='Factory Input Fields'!#REF! ->  | E52: =F50*D52 ->  | F52: =F50*D52 ->  | G52: If applicable, insert the percentage you pay to a buying house or agent
C53: Factory Selling Price | E53: =SUM(E50:E52) ->  | F53: =SUM(F50:F52) ->  | G53: =F53-E53 ->  | H53: Difference because of Covid
C54: % increase | G54: =IFERROR((F53-E53)/E53,0) -> 0

Sheet 2018 LMW
B2: Labour Minute Value based on 2018 Legal Minimum Wage
B4: Exchange rate BDT - US$ (change to actual) | E4: Average OT Hours per week | K4: Total number of workers
B5: ='Factory Input Fields'!C11 -> 83 | E5: ='Factory Input Fields'!C33 -> 0 | K5: ='Factory Input Fields'!C13 -> 0
B8: Wage Item | D8: Grade 1 "2018 LMW" | F8: Grade 2 "2018 LMW" | H8: Grade 3 "2018 LMW" | J8: Grade 4 "2018 LMW" | L8: Grade 5 "2018 LMW" | N8: Grade 6 "2018 LMW" | P8: Grade 7 "2018 LMW" | R8: Explanatory Notes
D9: Regular working hours (48h) | E9: Overtime hours | F9: Regular working hours (48h) | G9: Overtime hours | H9: Regular working hours (48h) | I9: Overtime hours | J9: Regular working hours (48h) | K9: Overtime hours | L9: Regular working hours (48h) | M9: Overtime hours | N9: Regular working hours (48h) | O9: Overtime hours | P9: Regular working hours (48h) | Q9: Overtime hours
B10: Legal Minimum Wage (Pay for time worked) | C10: Basic Wage | D10: 10938 | F10: 9044 | H10: 5330 | J10: 4998 | L10: 4683 | N10: 4380 | P10: 4100 | R10: 6 days a week, 8h/day; 48h/week x 4,33 = 208 h/month
C11: OT Wage | E11: =D10/208*($E$5*208/48)*2 -> 0 | G11: =F10/208*($E$5*208/48)*2 -> 0 | I11: =H10/208*($E$5*208/48)*2 -> 0 | K11: =J10/208*($E$5*208/48)*2 -> 0 | M11: =L10/208*($E$5*208/48)*2 -> 0 | O11: =N10/208*($E$5*208/48)*2 -> 0 | Q11: =P10/208*($E$5*208/48)*2 -> 0 | R11: (example 60h work/week; 2 hours per day x 26 days = 52*OT h / month Actual Overtime per week should be inserted in column " E5 "
C12: House Rent | D12: =0.5*D10 -> 5469 | F12: =0.5*F10 -> 4522 | H12: =0.5*H10 -> 2665 | J12: =0.5*J10 -> 2499 | L12: =0.5*L10 -> 2341.5 | N12: =0.5*N10 -> 2190 | P12: 2050
C13: Medical Allowance | D13: 600 | F13: 600 | H13: 600 | J13: 600 | L13: 600 | N13: 600 | P13: 600
C14: Transport | D14: 350 | F14: 350 | H14: 350 | J14: 350 | L14: 350 | N14: 350 | P14: 350
C15: Food | D15: 900 | F15: 900 | H15: 900 | J15: 900 | L15: 900 | N15: 900 | P15: 900
C16: Subtotal | D16: =SUM(D10:D15) -> 18257 | E16: =SUM(E10:E15) -> 0 | F16: 15416 | G16: 0 | H16: 9845 | I16: 0 | J16: 9347 | K16: 0 | L16: 8874.5 | M16: 0 | N16: 8420 | O16: 0 | P16: 8000 | Q16: 0
B17: Adjusted for Years of service of Workers | C17: Less than 1 Year | D17: ='Factory Input Fields'!D20 -> 1 | F17: ='Factory Input Fields'!E20 -> 1 | H17: ='Factory Input Fields'!F20 -> 1 | J17: ='Factory Input Fields'!G20 -> 1 | L17: ='Factory Input Fields'!H20 -> 1 | N17: ='Factory Input Fields'!I20 -> 1 | P17: ='Factory Input Fields'!J20 -> 1 | R17: Workers' years of service (5% yearly increase) within a certain pay grade need to be considered when implementing new wages. After 1 year of service, workers are entitled to 5% increment on the basic wage, while housing equals 50% of basic. Example worker in grade 7:after one year the wage would be 4,100x1.05 +4,100x0.5x1.05 +600+350+900 = 8,308.
C18: Between 1 and 2 Year | D18: ='Factory Input Fields'!D21 -> 0 | F18: ='Factory Input Fields'!E21 -> 0 | H18: ='Factory Input Fields'!F21 -> 0 | J18: ='Factory Input Fields'!G21 -> 0 | L18: ='Factory Input Fields'!H21 -> 0 | N18: ='Factory Input Fields'!I21 -> 0 | P18: ='Factory Input Fields'!J21 -> 0
C19: Between 2 and 3 Year | D19: ='Factory Input Fields'!D22 -> 0 | F19: ='Factory Input Fields'!E22 -> 0 | H19: ='Factory Input Fields'!F22 -> 0 | J19: ='Factory Input Fields'!G22 -> 0 | L19: ='Factory Input Fields'!H22 -> 0 | N19: ='Factory Input Fields'!I22 -> 0 | P19: ='Factory Input Fields'!J22 -> 0
C20: Between 3 and 4 Year | D20: ='Factory Input Fields'!D23 -> 0 | F20: ='Factory Input Fields'!E23 -> 0 | H20: ='Factory Input Fields'!F23 -> 0 | J20: ='Factory Input Fields'!G23 -> 0 | L20: ='Factory Input Fields'!H23 -> 0 | N20: ='Factory Input Fields'!I23 -> 0 | P20: ='Factory Input Fields'!J23 -> 0
C21: More than 4 Year | D21: ='Factory Input Fields'!D24 -> 0 | F21: ='Factory Input Fields'!E24 -> 0 | H21: ='Factory Input Fields'!F24 -> 0 | J21: ='Factory Input Fields'!G24 -> 0 | L21: ='Factory Input Fields'!H24 -> 0 | N21: ='Factory Input Fields'!I24 -> 0 | P21: ='Factory Input Fields'!J24 -> 0
C22: SubTOTAL 1 | D22: =D10*D17+D10*D18*1.05+D10*D19*1.05*1.05+D10*D20*1.05*1.05*1.05+D10*D21*1.05*1.05*1.05*1.05+D13+D14+D15+D17*0.5*D10+D18*D10*0.5*1.05+D19*D10*0.5*1.05*1.05+D20*D10*0.5*1.05*1.05*1.05+D21*D10*0.5*1.05*1.05*1.05*1.05 -> 18257 | E22: =E11*D17+E11*D18*1.05+E11*D19*1.05*1.05+E11*D20*1.05*1.05*1.05+E11*D21*1.05*1.05*1.05*1.05 -> 0 | F22: =F10*F17+F10*F18*1.05+F10*F19*1.05*1.05+F10*F20*1.05*1.05*1.05+F10*F21*1.05*1.05*1.05*1.05+F13+F14+F15+F17*0.5*F10+F18*F10*0.5*1.05+F19*F10*0.5*1.05*1.05+F20*F10*0.5*1.05*1.05*1.05+F21*F10*0.5*1.05*1.05*1.05*1.05 -> 15416 | G22: =G11*F17+G11*F18*1.05+G11*F19*1.05*1.05+G11*F20*1.05*1.05*1.05+G11*F21*1.05*1.05*1.05*1.05 -> 0 | H22: =H10*H17+H10*H18*1.05+H10*H19*1.05*1.05+H10*H20*1.05*1.05*1.05+H10*H21*1.05*1.05*1.05*1.05+H13+H14+H15+H17*0.5*H10+H18*H10*0.5*1.05+H19*H10*0.5*1.05*1.05+H20*H10*0.5*1.05*1.05*1.05+H21*H10*0.5*1.05*1.05*1.05*1.05 -> 9845 | I22: =I11*H17+I11*H18*1.05+I11*H19*1.05*1.05+I11*H20*1.05*1.05*1.05+I11*H21*1.05*1.05*1.05*1.05 -> 0 | J22: =J10*J17+J10*J18*1.05+J10*J19*1.05*1.05+J10*J20*1.05*1.05*1.05+J10*J21*1.05*1.05*1.05*1.05+J13+J14+J15+J17*0.5*J10+J18*J10*0.5*1.05+J19*J10*0.5*1.05*1.05+J20*J10*0.5*1.05*1.05*1.05+J21*J10*0.5*1.05*1.05*1.05*1.05 -> 9347 | K22: =K11*J17+K11*J18*1.05+K11*J19*1.05*1.05+K11*J20*1.05*1.05*1.05+K11*J21*1.05*1.05*1.05*1.05 -> 0 | L22: =L10*L17+L10*L18*1.05+L10*L19*1.05*1.05+L10*L20*1.05*1.05*1.05+L10*L21*1.05*1.05*1.05*1.05+L13+L14+L15+L17*0.5*L10+L18*L10*0.5*1.05+L19*L10*0.5*1.05*1.05+L20*L10*0.5*1.05*1.05*1.05+L21*L10*0.5*1.05*1.05*1.05*1.05 -> 8874.5 | M22: =M11*L17+M11*L18*1.05+M11*L19*1.05*1.05+M11*L20*1.05*1.05*1.05+M11*L21*1.05*1.05*1.05*1.05 -> 0 | N22: =N10*N17+N10*N18*1.05+N10*N19*1.05*1.05+N10*N20*1.05*1.05*1.05+N10*N21*1.05*1.05*1.05*1.05+N13+N14+N15+N17*0.5*N10+N18*N10*0.5*1.05+N19*N10*0.5*1.05*1.05+N20*N10*0.5*1.05*1.05*1.05+N21*N10*0.5*1.05*1.05*1.05*1.05 -> 8420 | O22: =O11*N17+O11*N18*1.05+O11*N19*1.05*1.05+O11*N20*1.05*1.05*1.05+O11*N21*1.05*1.05*1.05*1.05 -> 0 | P22: =P10*P17+P10*P18*1.05+P10*P19*1.05*1.05+P10*P20*1.05*1.05*1.05+P10*P21*1.05*1.05*1.05*1.05+P13+P14+P15+P17*0.5*P10+P18*P10*0.5*1.05+P19*P10*0.5*1.05*1.05+P20*P10*0.5*1.05*1.05*1.05+P21*P10*0.5*1.05*1.05*1.05*1.05 -> 8000 | Q22: =Q11*P17+Q11*P18*1.05+Q11*P19*1.05*1.05+Q11*P20*1.05*1.05*1.05+Q11*P21*1.05*1.05*1.05*1.05 -> 0
B23: Directly Paid Benefits | C23: Festival Bonus | D23: =(D22)/12*T23 -> 0 | F23: =(F22)/12*T23 -> 0 | H23: =(H22)/12*T23 -> 0 | J23: =(J22)/12*T23 -> 0 | L23: =(L22)/12*T23 -> 0 | N23: =(N22)/12*T23 -> 0 | P23: =((P22)/12)*T23 -> 0 | R23: Total number of months paid per worker per year as festival bonus: | T23: ='Factory Input Fields'!C38 -> 0
C24: Attendance bonus | D24: =IFERROR($T$24/$K$5,0) -> 0 | F24: =IFERROR($T$24/$K$5,0) -> 0 | H24: =IFERROR($T$24/$K$5,0) -> 0 | J24: =IFERROR($T$24/$K$5,0) -> 0 | L24: =IFERROR($T$24/$K$5,0) -> 0 | N24: =IFERROR($T$24/$K$5,0) -> 0 | P24: =IFERROR($T$24/$K$5,0) -> 0 | R24: Total amount paid in attendance bonuses per month: | T24: ='Factory Input Fields'!C39 -> 0
C25: Productivity Bonus | D25: =IFERROR($T$25/$K$5,0) -> 0 | F25: =IFERROR($T$25/$K$5,0) -> 0 | H25: =IFERROR($T$25/$K$5,0) -> 0 | J25: =IFERROR($T$25/$K$5,0) -> 0 | L25: =IFERROR($T$25/$K$5,0) -> 0 | N25: =IFERROR($T$25/$K$5,0) -> 0 | P25: =IFERROR($T$25/$K$5,0) -> 0 | R25: Total amount paid in productivity bonuses per month: | T25: ='Factory Input Fields'!C40 -> 0
C26: Any additional bonuses | D26: =IFERROR($T$26/$K$5,0) -> 0 | F26: =IFERROR($T$26/$K$5,0) -> 0 | H26: =IFERROR($T$26/$K$5,0) -> 0 | J26: =IFERROR($T$26/$K$5,0) -> 0 | L26: =IFERROR($T$26/$K$5,0) -> 0 | N26: =IFERROR($T$26/$K$5,0) -> 0 | P26: =IFERROR($T$26/$K$5,0) -> 0 | R26: Total amount paid in additional bonuses per month: | T26: ='Factory Input Fields'!C41 -> 0
C27: SubTOTAL 2 | D27: =SUM(D25:D26) -> 0 | F27: =SUM(F25:F26) -> 0 | H27: =SUM(H25:H26) -> 0 | J27: =SUM(J25:J26) -> 0 | L27: =SUM(L25:L26) -> 0 | N27: =SUM(N25:N26) -> 0 | P27: =SUM(P25:P26) -> 0
B28: Employer labour related on-cost | C28: Group insurance | D28: =IFERROR($T$28/$K$5/12,0) -> 0 | F28: =IFERROR($T$28/$K$5/12,0) -> 0 | H28: =IFERROR($T$28/$K$5/12,0) -> 0 | J28: =IFERROR($T$28/$K$5/12,0) -> 0 | L28: =IFERROR($T$28/$K$5/12,0) -> 0 | N28: =IFERROR($T$28/$K$5/12,0) -> 0 | P28: =IFERROR($T$28/$K$5/12,0) -> 0 | R28: Total amount paid per year for group insurance in BDT. | T28: ='Factory Input Fields'!C43 -> 0
C29: Provident Fund | D29: =IFERROR(T29/$K$5/12,0) -> 0 | F29: =IFERROR(T29/$K$5/12,0) -> 0 | H29: =IFERROR(T29/$K$5/12,0) -> 0 | J29: =IFERROR(T29/$K$5/12,0) -> 0 | L29: =IFERROR(T29/$K$5/12,0) -> 0 | N29: =IFERROR(T29/$K$5/12,0) -> 0 | P29: =IFERROR(T29/$K$5/12,0) -> 0 | R29: Total amount paid PER YEAR for provident fund in BDT. | T29: ='Factory Input Fields'!C44 -> 0
C30: Maternity leave / benefits | D30: =IFERROR($T$31/$K$5/12,0) -> 0 | F30: =IFERROR($T$31/$K$5/12,0) -> 0 | H30: =IFERROR($T$31/$K$5/12,0) -> 0 | J30: =IFERROR($T$31/$K$5/12,0) -> 0 | L30: =IFERROR($T$31/$K$5/12,0) -> 0 | N30: =IFERROR($T$31/$K$5/12,0) -> 0 | P30: =IFERROR($T$31/$K$5/12,0) -> 0 | R30: Total amount in maternity benefits paid PER YEAR in BDT. | T30: ='Factory Input Fields'!C45 -> 0
C31: Severence Pay | D31: =IFERROR(T31/$K$5/12,0) -> 0 | F31: =IFERROR(T31/$K$5/12,0) -> 0 | H31: =IFERROR(T31/$K$5/12,0) -> 0 | J31: =IFERROR(T31/$K$5/12,0) -> 0 | L31: =IFERROR(T31/$K$5/12,0) -> 0 | N31: =IFERROR(T31/$K$5/12,0) -> 0 | P31: =IFERROR(T31/$K$5/12,0) -> 0 | R31: Average amount PER YEAR paid by the factory for severence pay in BDT. | T31: ='Factory Input Fields'!C46 -> 0
C32: Any additional employer labour-related on-costs | D32: =IFERROR($T$32/$K$5/12,0) -> 0 | F32: =IFERROR($T$32/$K$5/12,0) -> 0 | H32: =IFERROR($T$32/$K$5/12,0) -> 0 | J32: =IFERROR($T$32/$K$5/12,0) -> 0 | L32: =IFERROR($T$32/$K$5/12,0) -> 0 | N32: =IFERROR($T$32/$K$5/12,0) -> 0 | P32: =IFERROR($T$32/$K$5/12,0) -> 0 | R32: If applicable, total amount paid PER YEAR for additional employer labour-related on-costs in BDT. | T32: ='Factory Input Fields'!C47 -> 0
C33: SubTOTAL 3 | D33: =SUM(D28:D32) -> 0 | F33: =SUM(F28:F32) -> 0 | H33: =SUM(H28:H32) -> 0 | J33: =SUM(J28:J32) -> 0 | L33: =SUM(L28:L32) -> 0 | N33: =SUM(N28:N32) -> 0 | P33: =SUM(P28:P32) -> 0
B34: TOTAL Labour cost per worker in BDT (1+2+3) | D34: =D33+D27+D22 -> 18257 | E34: 0 | F34: 15416 | G34: 0 | H34: 9845 | I34: 0 | J34: 9347 | K34: 0 | L34: 8874.5 | M34: 0 | N34: 8420 | O34: 0 | P34: 8000 | Q34: 0
B35: Monthly capacity minutes | D35: =48*4.33*60-(('Factory Input Fields'!C31/12*8*60)) -> 10350.4 | E35: =4.33*$E$5*60-('Factory Input Fields'!C31/12*'Factory Input Fields'!C33/6)*60 -> 0 | F35: =D35 -> 10350.4 | G35: =E35 -> 0 | H35: =D35 -> 10350.4 | I35: =E35 -> 0 | J35: =D35 -> 10350.4 | K35: =E35 -> 0 | L35: =D35 -> 10350.4 | M35: =E35 -> 0 | N35: =D35 -> 10350.4 | O35: =E35 -> 0 | P35: =D35 -> 10350.4 | Q35: =E35 -> 0 | R35: 208h x 60min for regular working hours and 52h x 60min for OT (the latter can be adjusted in Cell E5 based on actual OT hours) MINUS the average monthly number of minutes on public holidays.
B36: Monthly Labour Cost incl. OT in BDT | D36: =D34+E34 -> 18257 | F36: =F34+G34 -> 15416 | H36: =H34+I34 -> 9845 | J36: =J34+K34 -> 9347 | L36: =L34+M34 -> 8874.5 | N36: =N34+O34 -> 8420 | P36: =P34+Q34 -> 8000
B37: Monthly capacity minutes incl. OT | D37: =D35+E35 -> 10350.4 | F37: =F35+G35 -> 10350.4 | H37: =H35+I35 -> 10350.4 | J37: =J35+K35 -> 10350.4 | L37: =L35+M35 -> 10350.4 | N37: =N35+O35 -> 10350.4 | P37: =P35+Q35 -> 10350.4
B38: Labour minute Value BDT incl. OT | D38: =D36/D37 -> 1.763893183 | F38: =F36/F37 -> 1.489411037 | H38: =H36/H37 -> 0.9511709692 | J38: =J36/J37 -> 0.9030568867 | L38: =L36/L37 -> 0.857406477 | N38: =N36/N37 -> 0.8134951306 | P38: =P36/P37 -> 0.7729169887
B39: Labour Minute Value US$ incl. OT | D39: =D38/$B$5 -> 0.02125172509 | F39: =F38/$B$5 -> 0.01794471129 | H39: =H38/$B$5 -> 0.0114598912 | J39: =J38/$B$5 -> 0.01088020345 | L39: =L38/$B$5 -> 0.01033019852 | N39: =N38/$B$5 -> 0.009801146152 | P39: =P38/$B$5 -> 0.009312252876
B40: Distribution per Pay Grade in % | D40: ='Factory Input Fields'!D17 -> 0.01 | F40: ='Factory Input Fields'!E17 -> 0.03 | H40: ='Factory Input Fields'!F17 -> 0.25 | J40: ='Factory Input Fields'!G17 -> 0.19 | L40: ='Factory Input Fields'!H17 -> 0.21 | N40: ='Factory Input Fields'!I17 -> 0.12 | P40: ='Factory Input Fields'!J17 -> 0.19 | R40: =SUM(D40:Q40) -> 1 | S40: Cells indicate the distribution of workforce according to paygrade in the factory. % must add up to 100%
B42: Weighted Labour Cost p/worker (based on 2018 Legal Minimum Wage) | D42: =D40*D36+F40*F36+H40*H36+J40*J36+L40*L36+N40*N36+P40*P36 -> 9276.275
B43: Total Capacity Minutes | D43: =D37 -> 10350.4
B44: Weighted Labour Minute Value BDT (based on 2018 Legal Minimum Wage) | D44: =D38*D40+F38*F40+H38*H40+J38*J40+L381+L38*L40+N38*N40+P38*P40 -> 0.8962238174
B45: Weighted Labour Minute Value US$ (based on 2018 Legal Minimum Wage) | D45: =D40*D39+F40*F39+H40*H39+J40*J39+L40*L39+N40*N39+P40*P39 -> 0.01079787732

Sheet Target Wage
B2: Labour Minute Value based on 'Target' Wage
B4: Exchange rate BDT - US$ (change to actual) | E4: Average OT Hours per week | I4: Total number of workers | M4: Target Wage Grade 7 | P4: Note
B5: ='Factory Input Fields'!C11 -> 83 | E5: ='Factory Input Fields'!C33 -> 0 | I5: ='Factory Input Fields'!C13 -> 0 | M5: ='Factory Input Fields'!C49 -> 16000 | P5: Grades 1-6 are increased with the same nominal increase as for grade 7. However, different models are possible, which need to be discussed with management and worker representatives. This could then be adjusted in the coloured cells. Please note that this would remove the formula.
B8: Wage Item | D8: Grade 1 Target Wage | F8: Grade 2 Target Wage | H8: Grade 3 Target Wage | J8: Grade 4 Target Wage | L8: Grade 5 Target Wage | N8: Grade 6 Target Wage | P8: Grade 7 Target Wage | R8: Explanatory Notes
D9: Regular working hours (48h) | E9: Overtime hours | F9: Regular working hours (48h) | G9: Overtime hours | H9: Regular working hours (48h) | I9: Overtime hours | J9: Regular working hours (48h) | K9: Overtime hours | L9: Regular working hours (48h) | M9: Overtime hours | N9: Regular working hours (48h) | O9: Overtime hours | P9: Regular working hours (48h) | Q9: Overtime hours
B10: Legal Minimum Wage (Pay for time worked) | C10: Basic Wage | D10: =10938+(M5-'2018 LMW'!P22)/1.5 -> 16271.33333 | F10: =9044+(M5-'2018 LMW'!P22)/1.5 -> 14377.33333 | H10: =5330+(M5-'2018 LMW'!P22)/1.5 -> 10663.33333 | J10: =4998+(M5-'2018 LMW'!P22)/1.5 -> 10331.33333 | L10: =4683+(M5-'2018 LMW'!P22)/1.5 -> 10016.33333 | N10: =4380+(M5-'2018 LMW'!P22)/1.5 -> 9713.333333 | P10: =(M5-P13-P14-P15)/1.5 -> 9433.333333 | R10: 6 days a week, 8h/day; 48h/week x 4,33 = 208 h/month
C11: OT Wage | E11: =D10/208*($E$5*208/48)*2 -> 0 | G11: =F10/208*($E$5*208/48)*2 -> 0 | I11: =H10/208*($E$5*208/48)*2 -> 0 | K11: =J10/208*($E$5*208/48)*2 -> 0 | M11: =L10/208*($E$5*208/48)*2 -> 0 | O11: =N10/208*($E$5*208/48)*2 -> 0 | Q11: =P10/208*($E$5*208/48)*2 -> 0 | R11: (example 60h work/week; 2 hours per day x 26 days = 52*OT h / month Actual Overtime per week should be inserted in column " E5 "
C12: House Rent | D12: =0.5*D10 -> 8135.666667 | F12: =0.5*F10 -> 7188.666667 | H12: =0.5*H10 -> 5331.666667 | J12: =0.5*J10 -> 5165.666667 | L12: =0.5*L10 -> 5008.166667 | N12: =0.5*N10 -> 4856.666667 | P12: =0.5*P10 -> 4716.666667
C13: Medical Allowance | D13: 600 | F13: 600 | H13: 600 | J13: 600 | L13: 600 | N13: 600 | P13: 600
C14: Transport | D14: 350 | F14: 350 | H14: 350 | J14: 350 | L14: 350 | N14: 350 | P14: 350
C15: Food | D15: 900 | F15: 900 | H15: 900 | J15: 900 | L15: 900 | N15: 900 | P15: 900
C16: Subtotal | D16: =SUM(D10:D15) -> 26257 | E16: =SUM(E10:E15) -> 0 | F16: 23416 | G16: 0 | H16: 17845 | I16: 0 | J16: 17347 | K16: 0 | L16: 16874.5 | M16: 0 | N16: 16420 | O16: 0 | P16: 16000 | Q16: 0
B17: Adjusted for Years of service of Workers | C17: Less than 1 Year | D17: ='Factory Input Fields'!D20 -> 1 | F17: ='Factory Input Fields'!E20 -> 1 | H17: ='Factory Input Fields'!F20 -> 1 | J17: ='Factory Input Fields'!G20 -> 1 | L17: ='Factory Input Fields'!H20 -> 1 | N17: ='Factory Input Fields'!I20 -> 1 | P17: ='Factory Input Fields'!J20 -> 1 | R17: Workers' years of service (5% yearly increase) within a certain pay grade need to be considered when implementing new wages. After 1 year of service, workers are entitled to 5% increment on the basic wage, while housing equals 50% of basic. Example worker in grade 7:after one year the wage would be 4,100x1.05 +4,100x0.5x1.05 +600+350+900 = 8,308.
C18: Between 1 and 2 Year | D18: ='Factory Input Fields'!D21 -> 0 | F18: ='Factory Input Fields'!E21 -> 0 | H18: ='Factory Input Fields'!F21 -> 0 | J18: ='Factory Input Fields'!G21 -> 0 | L18: ='Factory Input Fields'!H21 -> 0 | N18: ='Factory Input Fields'!I21 -> 0 | P18: ='Factory Input Fields'!J21 -> 0
C19: Between 2 and 3 Year | D19: ='Factory Input Fields'!D22 -> 0 | F19: ='Factory Input Fields'!E22 -> 0 | H19: ='Factory Input Fields'!F22 -> 0 | J19: ='Factory Input Fields'!G22 -> 0 | L19: ='Factory Input Fields'!H22 -> 0 | N19: ='Factory Input Fields'!I22 -> 0 | P19: ='Factory Input Fields'!J22 -> 0
C20: Between 3 and 4 Year | D20: ='Factory Input Fields'!D23 -> 0 | F20: ='Factory Input Fields'!E23 -> 0 | H20: ='Factory Input Fields'!F23 -> 0 | J20: ='Factory Input Fields'!G23 -> 0 | L20: ='Factory Input Fields'!H23 -> 0 | N20: ='Factory Input Fields'!I23 -> 0 | P20: ='Factory Input Fields'!J23 -> 0
C21: More than 4 Year | D21: ='Factory Input Fields'!D24 -> 0 | F21: ='Factory Input Fields'!E24 -> 0 | H21: ='Factory Input Fields'!F24 -> 0 | J21: ='Factory Input Fields'!G24 -> 0 | L21: ='Factory Input Fields'!H24 -> 0 | N21: ='Factory Input Fields'!I24 -> 0 | P21: ='Factory Input Fields'!J24 -> 0
C22: SubTOTAL 1 | D22: =D10*D17+D10*D18*1.05+D10*D19*1.05*1.05+D10*D20*1.05*1.05*1.05+D10*D21*1.05*1.05*1.05*1.05+D13+D14+D15+D17*0.5*D10+D18*D10*0.5*1.05+D19*D10*0.5*1.05*1.05+D20*D10*0.5*1.05*1.05*1.05+D21*D10*0.5*1.05*1.05*1.05*1.05 -> 26257 | E22: =E11*D17+E11*D18*1.05+E11*D19*1.05*1.05+E11*D20*1.05*1.05*1.05+E11*D21*1.05*1.05*1.05*1.05 -> 0 | F22: =F10*F17+F10*F18*1.05+F10*F19*1.05*1.05+F10*F20*1.05*1.05*1.05+F10*F21*1.05*1.05*1.05*1.05+F13+F14+F15+F17*0.5*F10+F18*F10*0.5*1.05+F19*F10*0.5*1.05*1.05+F20*F10*0.5*1.05*1.05*1.05+F21*F10*0.5*1.05*1.05*1.05*1.05 -> 23416 | G22: =G11*F17+G11*F18*1.05+G11*F19*1.05*1.05+G11*F20*1.05*1.05*1.05+G11*F21*1.05*1.05*1.05*1.05 -> 0 | H22: =H10*H17+H10*H18*1.05+H10*H19*1.05*1.05+H10*H20*1.05*1.05*1.05+H10*H21*1.05*1.05*1.05*1.05+H13+H14+H15+H17*0.5*H10+H18*H10*0.5*1.05+H19*H10*0.5*1.05*1.05+H20*H10*0.5*1.05*1.05*1.05+H21*H10*0.5*1.05*1.05*1.05*1.05 -> 17845 | I22: =I11*H17+I11*H18*1.05+I11*H19*1.05*1.05+I11*H20*1.05*1.05*1.05+I11*H21*1.05*1.05*1.05*1.05 -> 0 | J22: =J10*J17+J10*J18*1.05+J10*J19*1.05*1.05+J10*J20*1.05*1.05*1.05+J10*J21*1.05*1.05*1.05*1.05+J13+J14+J15+J17*0.5*J10+J18*J10*0.5*1.05+J19*J10*0.5*1.05*1.05+J20*J10*0.5*1.05*1.05*1.05+J21*J10*0.5*1.05*1.05*1.05*1.05 -> 17347 | K22: =K11*J17+K11*J18*1.05+K11*J19*1.05*1.05+K11*J20*1.05*1.05*1.05+K11*J21*1.05*1.05*1.05*1.05 -> 0 | L22: =L10*L17+L10*L18*1.05+L10*L19*1.05*1.05+L10*L20*1.05*1.05*1.05+L10*L21*1.05*1.05*1.05*1.05+L13+L14+L15+L17*0.5*L10+L18*L10*0.5*1.05+L19*L10*0.5*1.05*1.05+L20*L10*0.5*1.05*1.05*1.05+L21*L10*0.5*1.05*1.05*1.05*1.05 -> 16874.5 | M22: =M11*L17+M11*L18*1.05+M11*L19*1.05*1.05+M11*L20*1.05*1.05*1.05+M11*L21*1.05*1.05*1.05*1.05 -> 0 | N22: =N10*N17+N10*N18*1.05+N10*N19*1.05*1.05+N10*N20*1.05*1.05*1.05+N10*N21*1.05*1.05*1.05*1.05+N13+N14+N15+N17*0.5*N10+N18*N10*0.5*1.05+N19*N10*0.5*1.05*1.05+N20*N10*0.5*1.05*1.05*1.05+N21*N10*0.5*1.05*1.05*1.05*1.05 -> 16420 | O22: =O11*N17+O11*N18*1.05+O11*N19*1.05*1.05+O11*N20*1.05*1.05*1.05+O11*N21*1.05*1.05*1.05*1.05 -> 0 | P22: =P10*P17+P10*P18*1.05+P10*P19*1.05*1.05+P10*P20*1.05*1.05*1.05+P10*P21*1.05*1.05*1.05*1.05+P13+P14+P15+P17*0.5*P10+P18*P10*0.5*1.05+P19*P10*0.5*1.05*1.05+P20*P10*0.5*1.05*1.05*1.05+P21*P10*0.5*1.05*1.05*1.05*1.05 -> 16000 | Q22: =Q11*P17+Q11*P18*1.05+Q11*P19*1.05*1.05+Q11*P20*1.05*1.05*1.05+Q11*P21*1.05*1.05*1.05*1.05 -> 0
B23: Directly Paid Benefits | C23: Festival Bonus | D23: =(D22)/12*T23 -> 0 | F23: =(F22)/12*T23 -> 0 | H23: =(H22)/12*T23 -> 0 | J23: =(J22)/12*T23 -> 0 | L23: =(L22)/12*T23 -> 0 | N23: =(N22)/12*T23 -> 0 | P23: =((P22)/12)*T23 -> 0 | R23: Total number of months paid per worker per year as festival bonus: | T23: ='Factory Input Fields'!C38 -> 0
C24: Attendance bonus | D24: =IFERROR($T$24/$I$5,0) -> 0 | F24: =IFERROR($T$24/$I$5,0) -> 0 | H24: =IFERROR($T$24/$I$5,0) -> 0 | J24: =IFERROR($T$24/$I$5,0) -> 0 | L24: =IFERROR($T$24/$I$5,0) -> 0 | N24: =IFERROR($T$24/$I$5,0) -> 0 | P24: =IFERROR($T$24/$I$5,0) -> 0 | R24: Total amount paid in attendance bonuses per month: | T24: ='Factory Input Fields'!C39 -> 0
C25: Productivity Bonus | D25: =IFERROR($T$25/$I$5,0) -> 0 | F25: =IFERROR($T$25/$I$5,0) -> 0 | H25: =IFERROR($T$25/$I$5,0) -> 0 | J25: =IFERROR($T$25/$I$5,0) -> 0 | L25: =IFERROR($T$25/$I$5,0) -> 0 | N25: =IFERROR($T$25/$I$5,0) -> 0 | P25: =IFERROR($T$25/$I$5,0) -> 0 | R25: Total amount paid in productivity bonuses per month: | T25: ='Factory Input Fields'!C40 -> 0
C26: Any additional bonuses | D26: =IFERROR($T$26/$I$5,0) -> 0 | F26: =IFERROR($T$26/$I$5,0) -> 0 | H26: =IFERROR($T$26/$I$5,0) -> 0 | J26: =IFERROR($T$26/$I$5,0) -> 0 | L26: =IFERROR($T$26/$I$5,0) -> 0 | N26: =IFERROR($T$26/$I$5,0) -> 0 | P26: =IFERROR($T$26/$I$5,0) -> 0 | R26: Total amount paid in additional bonuses per month: | T26: ='Factory Input Fields'!C41 -> 0
C27: SubTOTAL 2 | D27: =SUM(D25:D26) -> 0 | F27: =SUM(F25:F26) -> 0 | H27: =SUM(H25:H26) -> 0 | J27: =SUM(J25:J26) -> 0 | L27: =SUM(L25:L26) -> 0 | N27: =SUM(N25:N26) -> 0 | P27: =SUM(P25:P26) -> 0
B28: Employer labour related on-cost | C28: Group insurance | D28: =IFERROR($T$28/$I$5/12,0) -> 0 | F28: =IFERROR($T$28/$I$5/12,0) -> 0 | H28: =IFERROR($T$28/$I$5/12,0) -> 0 | J28: =IFERROR($T$28/$I$5/12,0) -> 0 | L28: =IFERROR($T$28/$I$5/12,0) -> 0 | N28: =IFERROR($T$28/$I$5/12,0) -> 0 | P28: =IFERROR($T$28/$I$5/12,0) -> 0 | R28: Total amount paid per year for group insurance in BDT. | T28: ='Factory Input Fields'!C43 -> 0
C29: Provident Fund | D29: =IFERROR(T29/$K$5/12,0) -> 0 | F29: =IFERROR(T29/$K$5/12,0) -> 0 | H29: =IFERROR(T29/$K$5/12,0) -> 0 | J29: =IFERROR(T29/$K$5/12,0) -> 0 | L29: =IFERROR(T29/$K$5/12,0) -> 0 | N29: =IFERROR(T29/$K$5/12,0) -> 0 | P29: =IFERROR(T29/$K$5/12,0) -> 0 | R29: Total amount paid PER YEAR for provident fund in BDT. | T29: ='Factory Input Fields'!C44 -> 0
C30: Maternity leave / benefits | D30: =IFERROR($T$31/$K$5/12,0) -> 0 | F30: =IFERROR($T$31/$K$5/12,0) -> 0 | H30: =IFERROR($T$31/$K$5/12,0) -> 0 | J30: =IFERROR($T$31/$K$5/12,0) -> 0 | L30: =IFERROR($T$31/$K$5/12,0) -> 0 | N30: =IFERROR($T$31/$K$5/12,0) -> 0 | P30: =IFERROR($T$31/$K$5/12,0) -> 0 | R30: Total amount in maternity benefits paid PER YEAR in BDT. | T30: ='Factory Input Fields'!C45 -> 0
C31: Severence Pay | D31: =IFERROR(T31/$K$5/12,0) -> 0 | F31: =IFERROR(T31/$K$5/12,0) -> 0 | H31: =IFERROR(T31/$K$5/12,0) -> 0 | J31: =IFERROR(T31/$K$5/12,0) -> 0 | L31: =IFERROR(T31/$K$5/12,0) -> 0 | N31: =IFERROR(T31/$K$5/12,0) -> 0 | P31: =IFERROR(T31/$K$5/12,0) -> 0 | R31: Average amount PER YEAR paid by the factory for severence pay in BDT. | T31: ='Factory Input Fields'!C46 -> 0
C32: Any additional employer labour-related on-costs | D32: =IFERROR($T$32/$I$5/12,0) -> 0 | F32: =IFERROR($T$32/$I$5/12,0) -> 0 | H32: =IFERROR($T$32/$I$5/12,0) -> 0 | J32: =IFERROR($T$32/$I$5/12,0) -> 0 | L32: =IFERROR($T$32/$I$5/12,0) -> 0 | N32: =IFERROR($T$32/$I$5/12,0) -> 0 | P32: =IFERROR($T$32/$I$5/12,0) -> 0 | R32: If applicable, total amount paid PER YEAR for additional employer labour-related on-costs in BDT. | T32: ='Factory Input Fields'!C47 -> 0
C33: SubTOTAL 3 | D33: =SUM(D28:D32) -> 0 | F33: =SUM(F28:F32) -> 0 | H33: =SUM(H28:H32) -> 0 | J33: =SUM(J28:J32) -> 0 | L33: =SUM(L28:L32) -> 0 | N33: =SUM(N28:N32) -> 0 | P33: =SUM(P28:P32) -> 0
B34: TOTAL Labour cost per worker in BDT (1+2+3) | D34: =D33+D27+D22 -> 26257 | E34: 0 | F34: 23416 | G34: 0 | H34: 17845 | I34: 0 | J34: 17347 | K34: 0 | L34: 16874.5 | M34: 0 | N34: 16420 | O34: 0 | P34: 16000 | Q34: 0
B35: Monthly capacity minutes | D35: =48*4.33*60-(('Factory Input Fields'!C31/12*8*60)) -> 10350.4 | E35: =4.33*$E$5*60-('Factory Input Fields'!C31/12*'Factory Input Fields'!C33/6)*60 -> 0 | F35: =D35 -> 10350.4 | G35: =E35 -> 0 | H35: =D35 -> 10350.4 | I35: =E35 -> 0 | J35: =D35 -> 10350.4 | K35: =E35 -> 0 | L35: =D35 -> 10350.4 | M35: =E35 -> 0 | N35: =D35 -> 10350.4 | O35: =E35 -> 0 | P35: =D35 -> 10350.4 | Q35: =E35 -> 0 | R35: 208h x 60min for regular working hours and 52h x 60min for OT (the latter can be adjusted in Cell E5 based on actual OT hours) MINUS the average monthly number of minutes on public holidays.
B36: Monthly Labour Cost incl. OT in BDT | D36: =D34+E34 -> 26257 | F36: =F34+G34 -> 23416 | H36: =H34+I34 -> 17845 | J36: =J34+K34 -> 17347 | L36: =L34+M34 -> 16874.5 | N36: =N34+O34 -> 16420 | P36: =P34+Q34 -> 16000
B37: Monthly capacity minutes incl. OT | D37: =D35+E35 -> 10350.4 | F37: =F35+G35 -> 10350.4 | H37: =H35+I35 -> 10350.4 | J37: =J35+K35 -> 10350.4 | L37: =L35+M35 -> 10350.4 | N37: =N35+O35 -> 10350.4 | P37: =P35+Q35 -> 10350.4
B38: Labour minute Value BDT incl. OT | D38: =D36/D37 -> 2.536810172 | F38: =F36/F37 -> 2.262328026 | H38: =H36/H37 -> 1.724087958 | J38: =J36/J37 -> 1.675973875 | L38: =L36/L37 -> 1.630323466 | N38: =N36/N37 -> 1.586412119 | P38: =P36/P37 -> 1.545833977
B39: Labour Minute Value US$ incl. OT | D39: =D38/$B$5 -> 0.03056397797 | F39: =F38/$B$5 -> 0.02725696417 | H39: =H38/$B$5 -> 0.02077214407 | J39: =J38/$B$5 -> 0.02019245633 | L39: =L38/$B$5 -> 0.01964245139 | N39: =N38/$B$5 -> 0.01911339903 | P39: =P38/$B$5 -> 0.01862450575
B40: Distribution per Pay Grade in % | D40: ='Factory Input Fields'!D17 -> 0.01 | F40: ='Factory Input Fields'!E17 -> 0.03 | H40: ='Factory Input Fields'!F17 -> 0.25 | J40: ='Factory Input Fields'!G17 -> 0.19 | L40: ='Factory Input Fields'!H17 -> 0.21 | N40: ='Factory Input Fields'!I17 -> 0.12 | P40: ='Factory Input Fields'!J17 -> 0.19 | R40: =SUM(D40:Q40) -> 1 | S40: Cells indicate the distribution of workforce according to paygrade in the factory. % must add up to 100%
B42: Weighted Labour Cost per worker (based on Target Wage) | D42: =D40*D36+F40*F36+H40*H36+J40*J36+L40*L36+N40*N36+P40*P36 -> 17276.275
B43: Total Capacity Minutes | D43: =D37 -> 10350.4
B44: Weighted Labour Minute Value BDT (based on Target Wage) | D44: =D38*D40+F38*F40+H38*H40+J38*J40+L381+L38*L40+N38*N40+P38*P40 -> 1.669140806
B45: Weighted Labour Minute Value US$ (based on Target Wage) | D45: =D40*D39+F40*F39+H40*H39+J40*J39+L40*L39+N40*N39+P40*P39 -> 0.02011013019
